[Event "45th FIDE Womens Olympiad 2024"]
[Site "Budapest"]
[Date "2024.09.11"]
[Round "1.7"]
[White "Papp, Petra"]
[Black "Vega Jimenez, Keyshla M."]
[Result "1-0"]
[ECO "D02"]
[WhiteElo "2259"]
[BlackElo "1769"]
[Annotator "ChessBase"]
[PlyCount "45"]
[EventDate "2024.09.05"]
[EventType "team-tourn"]
[EventCountry "HUN"]
[SourceTitle "playchess.com"]
[Source "ChessBase"]
[SourceQuality "1"]
[WhiteTeam "Hungary"]
[BlackTeam "Puerto Rico"]
[WhiteTeamCountry "HUN"]
[BlackTeamCountry "PUR"]
[TimeControl "40/5400+30:1800+30"]

1. d4 {[%emt 0:00:03]} Nf6 {[%emt 0:00:15]} 2. Nf3 {[%emt 0:01:08]} e6 {[%emt 0:00:32]} 3. Bf4 {[%emt 0:01:03]} d5 {[%emt 0:01:02]} 4. e3 {[%emt 0:00:41]} Bd6 {[%emt 0:01:42]} 5. Ne5 {[%emt 0:00:38]} O-O {[%emt 0:03:58]} 6. Nd2 {[%emt 0:02:05]} c5 {[%emt 0:00:59]} 7. c3 {[%emt 0:00:45]} Qc7 {[%emt 0:02:56]} 8. Bd3 {[%emt 0:01:24]} Nbd7 {[%emt 0:02:54]} 9. Ndf3 {[%emt 0:02:40]} b6 {[%emt 0:04:00]} 10. h4 {[%emt 0:02:58]} Nh5 {[%emt 0:12:46]} 11. Bxh7+ {[%emt 0:10:51]} Kh8 {[%emt 0:03:31]} 12. Bd3 {[%emt 0:03:43]} Nxf4 {[%emt 0:10:34]} 13. exf4 {[%emt 0:00:12]} cxd4 {[%emt 0:16:34]} 14. cxd4 {[%emt 0:07:26]} Bb4+ {[%emt 0:01:13]} 15. Kf1 {[%emt 0:00:33]} Nf6 {[%emt 0:07:17]} 16. Rc1 {[%emt 0:00:44]} Qb7 {[%emt 0:05:23]} 17. Ng5 {[%emt 0:05:46]} Kg8 {[%emt 0:05:46]} 18. g3 {[%emt 0:04:29]} Bd6 {[%emt 0:08:17]} 19. Qe2 {[%emt 0:01:21]} a5 {[%emt 0:05:21]} 20. Kg2 {[%emt 0:01:50]} Bd7 {[%emt 0:02:24]} 21. Ng4 {[%emt 0:03:33]} Ne8 {[%emt 0:02:36]} 22. Nh7 {[%emt 0:01:26]} f5 {[%emt 0:00:50]} 23. Nxf8 {[%emt 0:00:08]} 1-0

[Event "45th FIDE Womens Olympiad 2024"]
[Site "Budapest"]
[Date "2024.09.11"]
[Round "1.8"]
[White "Alvarado Perez, Coralys M."]
[Black "Lazarne Vajda, Szidonia"]
[Result "0-1"]
[ECO "B10"]
[WhiteElo "1694"]
[BlackElo "2283"]
[Annotator "RC"]
[PlyCount "148"]
[EventDate "2024.09.05"]
[EventType "team-tourn"]
[EventCountry "HUN"]
[SourceTitle "playchess.com"]
[Source "ChessBase"]
[SourceQuality "1"]
[WhiteTeam "Puerto Rico"]
[BlackTeam "Hungary"]
[WhiteTeamCountry "PUR"]
[BlackTeamCountry "HUN"]
[TimeControl "40/5400+30:1800+30"]

1. e4 {[%emt 0:00:05]} c6 {[%emt 0:00:09]} 2. g3 {[%emt 0:00:33]} d5 {[%emt 0:00:27]} 3. Bg2 {[%emt 0:00:57]} dxe4 {[%emt 0:00:36]} 4. Bxe4 {[%emt 0:00:10]} Nf6 {[%emt 0:00:35]} 5. Bg2 {[%emt 0:00:10]} e5 {[%emt 0:01:00]} 6. d3 {[%emt 0:05:44]} Bc5 {[%emt 0:01:56]} 7. Ne2 {[%emt 0:12:38]} O-O {[%emt 0:00:46]} 8. O-O {[%emt 0:00:45]} Be6 {[%emt 0:00:45]} 9. Nd2 {[%emt 0:09:05]} Nbd7 {[%emt 0:03:21]} 10. h3 {[%emt 0:00:57]} Re8 {[%emt 0:00:54]} 11. Kh2 {[%emt 0:00:54]} Bd5 {[%emt 0:07:27]} 12. f3 {[%emt 0:03:23]} Bf8 {[%emt 0:04:45]} 13. Ne4 {[%emt 0:08:20]} c5 {[%emt 0:01:10]} 14. N2c3 {[%emt 0:03:24]} Bc6 {[%emt 0:01:27]} 15. f4 {[%emt 0:09:48]} Nxe4 {[%emt 0:07:23]} 16. Nxe4 {[%emt 0:04:09]} f5 {[%emt 0:12:19]} 17. Nc3 {[%emt 0:01:22]} Bxg2 {[%emt 0:02:24]} 18. Kxg2 {[%emt 0:00:09]} Qc7 {[%emt 0:07:08]} 19. Qf3 {[%emt 0:04:26]} g6 {[%emt 0:01:52]} 20. fxe5 {[%emt 0:02:58]} Nxe5 {[%emt 0:01:26]} 21. Qd5+ {[%emt 0:02:35]} Qf7 {[%emt 0:02:46]} 22. Bf4 {[%emt 0:01:40]} Rad8 {[%emt 0:01:45]} 23. Qxf7+ {[%emt 0:00:49]} Nxf7 {[%emt 0:00:15]} 24. Rfe1 {[%emt 0:02:13]} Bg7 {[%emt 0:00:47]} 25. Bd2 {[%emt 0:03:58]} Kf8 {[%emt 0:09:11]} 26. Rxe8+ {[%emt 0:01:49]} Rxe8 {[%emt 0:00:04]} 27. Re1 {[%emt 0:00:06]} Rxe1 {[%emt 0:05:47]} 28. Bxe1 {[%emt 0:00:07]} Nd6 {[%emt 0:00:15]} 29. Kf3 {[%emt 0:01:32]} Ke7 {[%emt 0:01:23]} 30. Bd2 {[%emt 0:01:10]} Ke6 {[%emt 0:00:25]} 31. b3 {[%emt 0:02:13]} Nf7 {[%emt 0:06:33]} 32. Ne2 {[%emt 0:01:24]} g5 {[%emt 0:02:46]} 33. c3 {[%emt 0:03:04]} Ne5+ {[%emt 0:01:50]} 34. Kg2 {[%emt 0:01:14]} h6 {[%emt 0:02:21]} 35. d4 {[%emt 0:00:46]} Nd7 {[%emt 0:01:09]} 36. dxc5 {[%emt 0:00:41]} Nxc5 {[%emt 0:00:06]} 37. Nd4+ {[%emt 0:00:49]} Bxd4 {[%emt 0:01:13]} 38. cxd4 {[%emt 0:00:07]} Ne4 {[%emt 0:00:20]} 39. Bc1 {[%emt 0:01:34]} Kd5 {[%emt 0:00:39]} 40. Bb2 {[%emt 0:00:59]} h5 {[%emt 0:01:10]} 41. Kf3 {[%emt 0:36:07]} a5 {[%emt 0:31:25]} 42. h4 {[%emt 0:00:00]} g4+ {[%emt 0:00:00]} 43. Kf4 {[%emt 0:00:00]} Ke6 {[%emt 0:00:00]} 44. Ba1 {[%emt 0:00:00]} b5 {[%emt 0:00:00]} 45. Bb2 {[%emt 0:00:00]} a4 {[%emt 0:00:00]} 46. bxa4 {[%emt 0:00:00]} bxa4 {[%emt 0:00:00]} 47. a3 {[%emt 0:00:00]} Kd5 {[%emt 0:00:00]} 48. Ba1 {[%emt 0:00:00]} Kc4 {[%emt 0:00:00]} 49. Bb2 {[%emt 0:00:00]} Kd5 {[%emt 0:00:00]} 50. Ba1 {[%emt 0:00:00]} Ke6 {[%emt 0:00:00]} 51. Bb2 {[%emt 0:00:00]} Kd6 {[%emt 0:02:09]} 52. Ba1 {[%emt 0:00:00]} Kd5 {[%emt 0:01:10]} 53. Bb2 {[%emt 0:00:00]} Kc4 {[%emt 0:03:29]} 54. Kxf5 {[%emt 0:00:00]} Nxg3+ {[%emt 0:00:11]} 55. Ke6 {[%emt 0:00:00]} Ne2 {[%emt 0:00:45]} 56. d5 {[%emt 0:04:14]} Nf4+ {[%emt 0:00:04]} 57. Kf5 {[%emt 0:00:08]} Nxd5 {[%emt 0:00:05]} 58. Be5 {[%emt 0:00:17]} Kd3 {[%emt 0:02:13]} 59. Kg5 {[%emt 0:00:33]} Ke4 {[%emt 0:00:24]} 60. Bd6 {[%emt 0:01:55]} Kf3 {[%emt 0:02:36]} 61. Kxh5 {[%emt 0:00:42]} g3 {[%emt 0:02:10]} 62. Kg5 {[%emt 0:00:34]} g2 {[%emt 0:02:23]} 63. Bh2 {[%emt 0:00:36]} Kf2 {[%emt 0:01:26]} 64. h5 {[%emt 0:00:39]} Ne3 {[%emt 0:00:20]} 65. h6 {[%emt 0:01:08]} Nf1 {[%emt 0:00:06]} 66. Bg1+ {[%emt 0:01:56]} Kxg1 {[%emt 0:00:06]} 67. h7 {[%emt 0:00:03]} Kf2 {[%emt 0:00:05]} 68. h8=Q {[%emt 0:00:17]} g1=Q+ {[%emt 0:00:07]} 69. Kf6 {[%emt 0:06:34]} Qg3 {[%emt 0:00:53]} 70. Ke6 {[%emt 0:01:18]} Qb3+ {[%emt 0:02:27]} 71. Kd7 {[%emt 0:00:57]} Qxa3 {[%emt 0:00:41]} 72. Qd4+ {[%emt 0:01:10]} Ne3 {[%emt 0:00:40]} 73. Qf4+ {[%emt 0:00:49]} Ke2 {[%emt 0:00:57]} 74. Qh2+ {[%emt 0:00:21]} Kd3 {[%emt 0:00:17]} 0-1

[Event "45th FIDE Womens Olympiad 2024"]
[Site "Budapest"]
[Date "2024.09.11"]
[Round "1.9"]
[White "Javakhishvili, Lela"]
[Black "Rouda Essa, Alserkal"]
[Result "1-0"]
[ECO "D02"]
[WhiteElo "2446"]
[BlackElo "2036"]
[Annotator "TA"]
[PlyCount "39"]
[EventDate "2024.09.05"]
[EventType "team-tourn"]
[EventCountry "HUN"]
[SourceTitle "playchess.com"]
[Source "ChessBase"]
[SourceQuality "1"]
[WhiteTeam "Georgia"]
[BlackTeam "United Arab Emirates"]
[WhiteTeamCountry "GEO"]
[BlackTeamCountry "UAE"]
[TimeControl "40/5400+30:1800+30"]

{[%evp 12,38,21,19,37,39,24,26,41,43,82,79,94,87,89,100,228,228,481,469,457,427,2277,0,1988,1973,29994,29995,29999]} 1. d4 {[%emt 0:00:04]} Nf6 {[%emt 0:00:33]} 2. Nf3 {[%emt 0:00:12]} e6 {[%emt 0:00:40]} 3. Bf4 {[%emt 0:00:16]} d5 {[%emt 0:02:08]} 4. e3 {[%emt 0:00:08]} c5 {[%emt 0:02:55]} 5. Nbd2 {[%emt 0:00:27]} Nc6 {[%emt 0:01:56]} 6. c3 {[%emt 0:00:27]} Qb6 {[%emt 0:01:01]} 7. Rb1 {[%emt 0:02:45]} Be7 {[%emt 0:08:31]} 8. Bd3 {[%emt 0:00:34]} O-O {[%emt 0:02:01]} 9. h4 {[%emt 0:06:32]} Re8 {[%emt 0:16:51] White has an edge.} 10. Ne5 {[%emt 0:07:38]} cxd4 {[%emt 0:05:23]} 11. exd4 {[%emt 0:01:49][%cal Be3d4,Bd4e5][%mdl 32]} Nxe5 {[%emt 0:09:25]} 12. dxe5 {[%emt 0:01:34]} Nd7 {[%emt 0:01:28]} 13. Qh5 {[%emt 0:05:27]} Nf8 {[%emt 0:08:42]} (13... g6 $16 {was called for.} 14. Qg4 h5) 14. Nf3 $1 $18 {[%emt 0:02:42]} Bd7 $2 {[%emt 0:13:38] [#]} (14... Qc7 {might work better.} 15. Bxh7+ Nxh7) 15. Bxh7+ $1 {[%emt 0:16:42][%mdl 512]} Nxh7 {[%emt 0:00:06]} 16. Ng5 {[%emt 0:00:03]} Nf8 {[%emt 0:00:09]} (16... Bxg5 $142 17. hxg5 Bb5) 17. Qxf7+ {[%emt 0:00:07]} Kh8 {[%emt 0:00:04] [#]} 18. h5 $1 {[%emt 0:01:07][%cal Bh4h5,Bh5h6][%mdl 32] White wants to mate with h6.} Bb5 {[%emt 0:05:02]} 19. h6 {[%emt 0:00:33][%csl Gf7][%cal Rh6g7]} g6 {[%emt 0:00:03]} 20. Qg7# {[%emt 0:00:06] Black got outplayed after the opening.   Weighted Error Value: White=0.00 (flawless) /Black=0.97.  Loses game:     	---       	Black=1      Mistake:       	---       	Black=3      Inaccurate:     	---       	Black=2      OK:         	White=2     	Black=1      Best:        	White=2     	---        Strong:       	White=1     	---        Brilliant:      	White=1     	---} 1-0

[Event "45th FIDE Womens Olympiad 2024"]
[Site "Budapest"]
[Date "2024.09.11"]
[Round "1.10"]
[White "Jorquera Cabello, Valentina"]
[Black "Oyenga, Justine Anassika"]
[Result "1-0"]
[ECO "C41"]
[WhiteElo "1919"]
[BlackElo "1503"]
[Annotator "NA"]
[PlyCount "67"]
[EventDate "2024.09.05"]
[EventType "team-tourn"]
[EventCountry "HUN"]
[SourceTitle "playchess.com"]
[Source "ChessBase"]
[SourceQuality "1"]
[WhiteTeam "Chile"]
[BlackTeam "Togo"]
[WhiteTeamCountry "CHI"]
[BlackTeamCountry "TOG"]
[TimeControl "40/5400+30:1800+30"]

1. e4 e5 2. Nf3 d6 3. d4 exd4 4. Nxd4 Nf6 5. Nc3 c5 6. Bb5+ Bd7 7. Bxd7+ Qxd7 8. Nf3 Qc6 9. O-O Be7 10. e5 Ng4 11. exd6 Bxd6 12. Re1+ Kf8 13. Ne4 Bc7 14. h3 Ne5 15. Nxe5 Bxe5 16. Qd8+ Qe8 17. Qxe8+ Kxe8 18. Nxc5 Nc6 19. f4 b6 20. Nb3 Kd7 21. fxe5 Rhe8 22. Bf4 Ke6 23. Rad1 Rac8 24. Rd6+ Kf5 25. Bg3 Re6 26. Red1 a5 27. c3 a4 28. Rxc6 axb3 29. Rxc8 bxa2 30. Ra8 f6 31. exf6 gxf6 32. Rxa2 Re3 33. Bh4 Kg6 34. Rd6 1-0

[Event "45th FIDE Womens Olympiad 2024"]
[Site "Budapest"]
[Date "2024.09.11"]
[Round "1.10"]
[White "Al Maamari, Wafia Darwish"]
[Black "Batsiashvili, Nino"]
[Result "0-1"]
[ECO "A13"]
[WhiteElo "1908"]
[BlackElo "2461"]
[Annotator "TA"]
[PlyCount "122"]
[EventDate "2024.09.05"]
[EventType "team-tourn"]
[EventCountry "HUN"]
[SourceTitle "playchess.com"]
[Source "ChessBase"]
[SourceQuality "1"]
[WhiteTeam "United Arab Emirates"]
[BlackTeam "Georgia"]
[WhiteTeamCountry "UAE"]
[BlackTeamCountry "GEO"]
[TimeControl "40/5400+30:1800+30"]

{[%evp 12,122,30,0,7,0,6,-4,0,0,0,1,3,-27,-17,-16,0,-20,0,-62,0,0,7,18,21,18,19,11,16,43,21,25,25,10,16,0,7,0,0,0,0,0,0,0,0,0,0,0,0,0,0,0,0,0,0,0,0,0,0,0,0,0,0,0,0,0,0,0,0,0,0,0,0,0,0,0,0,0,0,0,0,-63,-63,-77,-78,-79,-79,-87,-87,-87,-87,-388,-381,-327,-235,-1139,-753,-1570,-1558,-1067,-1053,-1745,-1412,-5081,-568,-29971,-29974,-29975,-29976,-29977,-29976,-29978,-29979]} 1. Nf3 {[%emt 0:01:07]} d5 {[%emt 0:00:19]} 2. b3 {[%emt 0:00:09]} c5 {[%emt 0:00:18]} 3. e3 {[%emt 0:00:44]} Nf6 {[%emt 0:00:21]} 4. Bb2 {[%emt 0:00:14]} e6 {[%emt 0:00:05]} 5. c4 {[%emt 0:00:40]} Nc6 {[%emt 0:00:40]} 6. cxd5 {[%emt 0:01:21]} exd5 {[%emt 0:00:07]} 7. d4 {[%emt 0:00:55]} Bg4 {[%emt 0:02:16]} 8. Be2 {[%emt 0:07:22]} Bxf3 {[%emt 0:03:27]} 9. Bxf3 {[%emt 0:01:59]} cxd4 {[%emt 0:00:07] The position is equal.} 10. Bxd4 {[%emt 0:11:20]} Nxd4 {[%emt 0:01:37]} 11. Qxd4 {[%emt 0:02:33]} Qa5+ {[%emt 0:00:38]} 12. Ke2 {[%emt 0:10:40]} Rc8 {[%emt 0:09:35]} 13. Rd1 {[%emt 0:06:37][%cal Ob1d2]} Be7 {[%emt 0:04:05]} 14. a3 {[%emt 0:11:37]} O-O {[%emt 0:06:38]} 15. b4 {[%emt 0:03:09]} ({White should play} 15. Ra2 $11) 15... Qa4 {[%emt 0:07:13]} (15... Rc2+ $1 $15 16. Rd2 Qa6+ 17. Qd3 Rc4) 16. Nd2 $11 {[%emt 0:09:38]} Rfe8 {[%emt 0:16:05][%cal Bf8e8,Be8c8,Bc8c2][%mdl 32]} 17. Qd3 {[%emt 0:10:53]} Rc2 {[%emt 0:25:57]} 18. Rdc1 {[%emt 0:06:29]} Rec8 {[%emt 0:00:41]} 19. Rxc2 {[%emt 0:00:22]} Rxc2 {[%emt 0:04:09]} 20. Bxd5 {[%emt 0:03:25]} Nxd5 {[%emt 0:02:35]} 21. Qxd5 {[%emt 0:00:05]} Qa6+ {[%emt 0:00:29]} 22. Qd3 {[%emt 0:01:03] White wants to play Qxa6.} Qc6 {[%emt 0:00:18]} 23. Kf1 {[%emt 0:05:12]} g6 {[%emt 0:00:17]} 24. Ne4 {[%emt 0:00:58]} Rc4 {[%emt 0:02:54]} 25. Ng3 {[%emt 0:00:58]} Bf6 {[%emt 0:01:01]} 26. Rd1 {[%emt 0:00:15]} Rc3 {[%emt 0:00:17]} 27. Qd5 {[%emt 0:01:37]} Qxd5 {[%emt 0:07:02]} 28. Rxd5 {[%emt 0:00:05]} Rxa3 {[%emt 0:00:03][%mdl 4096] Endgame. KRB-KRN} 29. Ne4 {[%emt 0:00:21]} Be7 {[%emt 0:01:05]} 30. b5 {[%emt 0:01:40]} b6 {[%emt 0:00:19]} 31. Rd7 {[%emt 0:00:34]} Kf8 {[%emt 0:00:04]} 32. Ke2 {[%emt 0:00:59]} h6 {[%emt 0:01:01]} 33. g4 {[%emt 0:01:01]} Ra5 {[%emt 0:00:31]} 34. h3 {[%emt 0:00:25]} Rxb5 {[%emt 0:01:23]} 35. Rxa7 {[%emt 0:00:06]} Rb2+ {[%emt 0:00:03]} 36. Kf3 {[%emt 0:00:24]} Bh4 {[%emt 0:01:44]} 37. Rb7 {[%emt 0:01:04]} b5 {[%emt 0:00:15]} 38. Ng3 {[%emt 0:00:40]} b4 {[%emt 0:00:29]} 39. Ne4 {[%emt 0:00:25]} b3 {[%emt 0:01:30]} 40. Ng3 {[%emt 0:00:37]} Bxg3 {[%emt 0:01:08]} 41. Kxg3 {[%emt 0:30:12] KR-KR} Rb1 {[%emt 0:31:00]} 42. Kf3 {[%emt 0:00:48]} Ke8 {[%emt 0:00:00]} 43. Ke4 {[%emt 0:00:00]} Rb2 {[%emt 0:00:00]} 44. f4 {[%emt 0:00:00]} Kf8 $1 {[%emt 0:00:00]} 45. Kd3 {[%emt 0:00:00]} Kg7 {[%emt 0:00:00]} 46. Kc3 {[%emt 0:00:00]} ({Better is} 46. Ke4 $11) 46... Rh2 $15 {[%emt 0:00:00]} 47. Rxb3 {[%emt 0:00:00]} Rxh3 {[%emt 0:00:00] Black is more active.} 48. Kd4 {[%emt 0:00:00]} Rg3 {[%emt 0:00:00]} 49. g5 {[%emt 0:00:00]} hxg5 {[%emt 0:00:00]} 50. fxg5 {[%emt 0:00:00]} Rxg5 {[%emt 0:00:00]} 51. Ke4 $2 {[%emt 0:00:00][%mdl 8192] Loses the game.} (51. e4 $17 {is more resistant.}) 51... Rf5 $19 {[%emt 0:00:00] [#] ...Rf2 is the strong threat.} 52. Rb1 {[%emt 0:00:00]} Rf2 {[%emt 0:00:00] White must now prevent ...g5.} 53. Rb7 $2 {[%emt 0:00:00]} (53. Kd3) 53... g5 {[%emt 0:00:00] Strongly threatening ...g4.} 54. Rb5 {[%emt 0:00:00]} Kg6 {[%emt 0:00:00]} 55. Rb6+ {[%emt 0:00:00]} Kh5 {[%emt 0:00:00]} 56. Kd3 {[%emt 0:00:00]} f5 {[%emt 0:00:00] [#] ...g4 would now be deadly.} 57. Re6 {[%emt 0:00:11]} g4 {[%emt 0:00:00] Threatens to win with ...g3.} 58. e4 {[%emt 0:02:06]} g3 {[%emt 0:00:00] Black mates.} 59. exf5 {[%emt 0:00:59]} Rxf5 {[%emt 0:00:00]} 60. Re2 {[%emt 0:03:00]} Kg4 {[%emt 0:00:00]} 61. Kd2 {[%emt 0:00:36]} Kh3 {[%emt 0:00:00] Weighted Error Value: White=0.72/Black=0.05 (flawless) .  Loses game:     	White=1     	---        Mistake:       	White=3     	Black=1      Inaccurate:     	White=2     	---        OK:         	White=16    	Black=20     Best:        	White=1     	Black=7      Strong:       	---       	Black=1} 0-1

[Event "45th FIDE Womens Olympiad 2024"]
[Site "Budapest"]
[Date "2024.09.11"]
[Round "1.11"]
[White "Khotenashvili, Bella"]
[Black "Mariam, Essa"]
[Result "1-0"]
[ECO "A05"]
[WhiteElo "2432"]
[BlackElo "1779"]
[Annotator "TA"]
[PlyCount "79"]
[EventDate "2024.09.05"]
[EventType "team-tourn"]
[EventCountry "HUN"]
[SourceTitle "playchess.com"]
[Source "ChessBase"]
[SourceQuality "1"]
[WhiteTeam "Georgia"]
[BlackTeam "United Arab Emirates"]
[WhiteTeamCountry "GEO"]
[BlackTeamCountry "UAE"]
[TimeControl "40/5400+30:1800+30"]

{[%evp 9,79,12,15,17,2,12,33,31,41,32,27,37,27,55,52,61,107,82,87,52,100,98,100,92,97,97,84,43,50,42,63,41,91,48,57,58,58,50,58,47,79,87,95,81,76,19,105,89,120,0,0,0,0,0,0,0,104,85,102,102,126,122,371,351,784,766,833,830,986,964,989,953]} 1. Nf3 {[%emt 0:00:16]} Nf6 {[%emt 0:13:34]} 2. g3 {[%emt 0:00:11]} b5 {[%emt 0:00:22]} 3. Bg2 {[%emt 0:00:37]} Bb7 {[%emt 0:00:07]} 4. Na3 {[%emt 0:00:23]} a6 {[%emt 0:00:39]} 5. c4 {[%emt 0:00:12]} e5 {[%emt 0:00:15]} 6. O-O {[%emt 0:02:51]} Bxa3 {[%emt 0:03:35]} 7. bxa3 {[%emt 0:00:06]} e4 {[%emt 0:15:54]} 8. Nd4 {[%emt 0:04:25] White is slightly better.} Nc6 {[%emt 0:02:11]} 9. Nf5 {[%emt 0:03:21]} O-O {[%emt 0:03:27]} 10. Bb2 {[%emt 0:09:26]} Re8 {[%emt 0:17:20]} 11. d3 {[%emt 0:02:37]} Ne5 {[%emt 0:03:16]} 12. Qd2 {[%emt 0:05:30]} e3 {[%emt 0:05:43]} (12... d6 $14 {feels stronger.}) 13. Nxe3 {[%emt 0:12:43]} (13. Qxe3 Nf3+ 14. exf3 Rxe3 15. Nxe3 Rb8 $14) 13... Bxg2 {[%emt 0:00:08]} 14. Kxg2 {[%emt 0:00:10]} d5 {[%emt 0:02:11]} (14... bxc4 $14 {was preferrable.} 15. dxc4 d6) 15. cxd5 $16 {[%emt 0:02:49]} Nxd5 {[%emt 0:01:30]} 16. Nf5 {[%emt 0:05:05][%cal Of5g7] Strongly threatening Nxg7!} Nb6 {[%emt 0:04:48]} 17. Rad1 {[%emt 0:07:58] f4 is the strong threat.} f6 {[%emt 0:02:10]} 18. f4 {[%emt 0:07:09]} Nf7 {[%emt 0:03:11][%cal Be5f7,Bf7d6,Bd6b5,Bb5c3][%mdl 32]} 19. e4 {[%emt 0:00:35]} c5 {[%emt 0:00:26]} 20. Qe2 {[%emt 0:03:50] White is more active.} Qd7 {[%emt 0:02:23]} (20... Nd6 $14 21. Ne3 Qd7) 21. Rf2 {[%emt 0:07:15][%cal Ob2f6]} Nd6 {[%emt 0:01:02]} 22. Ne3 {[%emt 0:03:15]} Qe6 {[%emt 0:00:32][%cal Oc5c4]} 23. Qf3 {[%emt 0:09:37]} Rad8 {[%emt 0:03:40][%cal Oc5c4]} 24. Bc3 {[%emt 0:02:31]} b4 {[%emt 0:01:45]} 25. axb4 {[%emt 0:01:08]} Nb5 {[%emt 0:00:06]} 26. Ba1 {[%emt 0:02:36]} cxb4 {[%emt 0:00:11]} 27. Nf5 {[%emt 0:01:34]} ({White should try} 27. Rc2 $16) 27... Nd5 {[%emt 0:01:30]} 28. Rc1 $1 {[%emt 0:05:48]} ({And not} 28. exd5 Qxf5 29. h4 h5 $19 (29... Qxd5 30. g4 $17)) 28... Ndc3 {[%emt 0:05:06]} 29. Bxc3 {[%emt 0:00:02]} (29. a4 $1 $16 {[%cal Ra4b5]} Nxa4 30. Qg4) 29... Nxc3 $11 {[%emt 0:00:13]} 30. a3 {[%emt 0:00:10]} a5 {[%emt 0:02:27]} 31. axb4 $40 {[%emt 0:00:02][%mdl 128] White mounts an attack.} axb4 {[%emt 0:00:07]} 32. Rb2 {[%emt 0:00:39]} g6 {[%emt 0:01:47] [#]} (32... Qa6 $11 {keeps the balance.}) 33. Nh6+ $1 $16 {[%emt 0:00:15]} (33. Rxb4 Na2 34. Nh6+ Kf8 $11) 33... Kg7 {[%emt 0:00:05]} 34. Rxb4 {[%emt 0:01:06] Hoping for Ng4.} Qa2+ {[%emt 0:01:40]} 35. Kh3 {[%emt 0:00:24]} Qe2 $2 {[%emt 0:01:11] [#] Loses the game.} (35... Nd5 $16 36. exd5 Kxh6) 36. Qg4 $1 $18 {[%emt 0:01:09] Black must now prevent Qh4.} (36. Qxe2 Nxe2 37. Rc2 Nxf4+ 38. gxf4 Rxd3+ 39. Kh4 Kxh6 $11) 36... Qxg4+ {[%emt 0:03:23]} (36... Kxh6 37. Qh4+ (37. Rxc3 Qf1+ 38. Kh4 Re5 $17) 37... Qh5 38. Qxh5+ (38. Rxc3 Qxh4+ 39. Kxh4 Re7 $18) 38... Kxh5) 37. Nxg4 {[%emt 0:00:02] White is clearly winning.} Re7 {[%emt 0:00:34]} 38. Rxc3 {[%emt 0:00:07]} h5 {[%emt 0:00:17]} 39. Ne3 {[%emt 0:00:05]} f5 {[%emt 0:00:39]} 40. e5 {[%emt 0:00:14] Weighted Error Value: White=0.10 (very precise) /Black=0.38.  Loses game:     	---       	Black=1      Mistake:       	White=2     	Black=6      Inaccurate:     	White=3     	Black=1      OK:         	White=10    	Black=11     Best:        	White=2     	Black=4      Strong:       	White=3     	---} 1-0

[Event "45th FIDE Womens Olympiad 2024"]
[Site "Budapest"]
[Date "2024.09.11"]
[Round "1.11"]
[White "Kponsou, Afiwa"]
[Black "Morales Flores, Monserrat"]
[Result "0-1"]
[ECO "A49"]
[WhiteElo "1453"]
[BlackElo "1938"]
[Annotator "NA"]
[PlyCount "100"]
[EventDate "2024.09.05"]
[EventType "team-tourn"]
[EventCountry "HUN"]
[SourceTitle "playchess.com"]
[Source "ChessBase"]
[SourceQuality "1"]
[WhiteTeam "Togo"]
[BlackTeam "Chile"]
[WhiteTeamCountry "TOG"]
[BlackTeamCountry "CHI"]
[TimeControl "40/5400+30:1800+30"]

1. Nf3 Nf6 2. g3 g6 3. Bg2 Bg7 4. O-O O-O 5. d4 d6 6. Nbd2 Nbd7 7. e4 e5 8. c3 Qe7 9. Re1 Nb6 10. dxe5 dxe5 11. a4 a5 12. b3 Rd8 13. Qe2 h6 14. Ba3 Qe6 15. Rad1 Bd7 16. Bb2 Bc6 17. c4 Nfd7 18. Ba3 Nf6 19. c5 Nbd7 20. Rf1 Bf8 21. Rc1 b6 22. Qc4 Qxc4 23. Nxc4 Nxc5 24. Bxc5 Bxc5 25. Nfxe5 Bxe4 26. Bxe4 Nxe4 27. Ng4 Kg7 28. Rcd1 Nc3 29. Rde1 Rd4 30. Nge5 Re4 31. Kg2 Rd8 32. Rxe4 Nxe4 33. f3 Nc3 34. Rc1 Ne2 35. Rc2 Nd4 36. Rd2 Re8 37. Nd7 Nxb3 38. Rd5 Bb4 39. Nde5 Nc5 40. Nd7 Nxa4 41. Nde5 Nc5 42. Nc6 Re6 43. Nxb4 axb4 44. Kf2 c6 45. Rd1 b5 46. Na5 Na4 47. Rb1 c5 48. Nb3 Nc3 49. Nxc5 Nxb1 50. Nxe6+ fxe6 0-1